bitfinex/quotes_ETHUSD_20250801
["timestamp","ask_amount","ask_price","bid_price","bid_amount"]
[1754042450628,4.75189816,3619.7,3619.6,1.0398]
[1754042450841,0.40589816,3619.7,3619.6,1.0398]
[1754042451016,4.88929816,3619.7,3619.6,1.0398]
[1754042451920,4.88929816,3619.7,3619.3,2.76296143]
[1754042452151,0.1384,3619.4,3619.3,2.76296143]
[1754042452417,0.1384,3619.4,3619.3,3.80276521]
[1754042452418,4.4814,3619.4,3619.3,3.80276521]
[1754042452646,4.4814,3619.4,3619.3,1.0398]
[1754042452815,4.4814,3619.4,3619.3,3.80276521]
[1754042453565,4.4814,3619.4,3619.3,4.26396521]
[1754042453771,4.4814,3619.4,3619.2,2.7630096]
[1754042453910,4.343,3619.4,3619.2,1.0398]
[1754042454114,0.1384,3619.3,3619.2,1.0398]
[1754042454420,0.1384,3619.3,3619.0,2.76316075]
[1754042454611,0.1384,3619.3,3619.2,2.76304155]
[1754042455049,0.1384,3619.3,3619.2,4.26404155]
[1754042456650,0.1384,3619.3,3619.0,2.76313875]
[1754042456837,0.1384,3619.1,3619.0,2.76319295]
[1754042457028,4.4774,3619.1,3619.0,2.76319295]
[1754042457555,4.4774,3619.1,3619.0,4.26419295]
[1754042459249,4.4774,3619.1,3618.8,2.76327828]
[1754042459547,4.339,3619.1,3618.9,1.0398]
[1754042459749,4.339,3619.1,3618.9,3.80306837]
[1754042459951,0.1384,3619.0,3618.9,3.80306837]
[1754042460323,0.1384,3619.0,3618.9,2.76326837]
[1754042460847,0.1384,3619.0,3618.9,3.80306837]
[1754042461724,0.1384,3619.0,3618.8,2.76333349]
[1754042461929,0.1384,3619.0,3618.9,2.7632706]
[1754042462255,0.1384,3619.0,3618.8,2.76331911]
[1754042462439,4.339,3619.1,3618.9,2.7632706]
[1754042462643,0.1384,3619.0,3618.9,1.0398]
[1754042463075,0.58614,3619.0,3618.6,2.76345067]
[1754042463359,17.75046062,3619.5,3618.9,2.76321523]
[1754042463360,3.0,3619.5,3618.9,2.76321523]
[1754042463664,3.633826,3619.6,3618.8,2.76334696]
[1754042463665,4.331,3619.4,3619.1,2.7631179]
[1754042463815,0.87108302,3619.6,3618.6,2.76345645]
[1754042464018,3.0,3620.0,3619.5,2.76275565]
[1754042464225,4.331,3619.6,3619.5,2.76275565]
[1754042464428,4.4694,3619.6,3619.4,2.76285623]
[1754042464720,0.1384,3619.5,3619.3,2.76291463]
[1754042464934,4.331,3619.6,3619.3,2.76291463]
[1754042465135,4.331,3619.6,3619.4,1.501]
[1754042465634,0.1384,3619.5,3619.4,1.501]
[1754042466162,0.1384,3619.5,3619.4,4.26388887]
[1754042466657,0.1384,3619.5,3619.4,1.501]
[1754042466818,2.76289461,3619.4,3618.9,1.0398]
[1754042467020,4.327,3619.3,3619.0,1.501]
[1754042467357,4.327,3619.3,3619.1,1.501]
[1754042467959,4.327,3619.3,3618.9,1.0398]
[1754042468258,4.327,3619.2,3619.0,4.26412991]
[1754042468557,4.326,3619.1,3619.0,2.76312991]
[1754042468924,4.326,3619.1,3618.4,0.55]
[1754042469124,0.1384,3618.9,3618.8,2.76328956]
[1754042469323,3.16857262,3619.7,3619.0,2.76319425]
[1754042469324,3.16856358,3619.7,3619.0,2.76319425]
[1754042469548,0.1384,3619.1,3619.0,2.76319425]
[1754042469753,4.4634,3619.1,3619.0,3.22439425]
[1754042470236,4.4634,3619.1,3619.0,4.26419425]
[1754042473466,4.4594,3619.1,3619.0,4.26419425]
[1754042474170,4.4594,3619.1,3619.0,2.76319425]
[1754042474381,4.4574,3619.1,3619.0,3.80299425]
[1754042474586,4.4574,3619.1,3619.0,4.26419425]
[1754042476898,4.4574,3619.1,3619.0,1.501]
[1754042477044,4.4574,3619.1,3618.7,2.76340873]
[1754042477045,15.89733062,3619.1,3618.7,1.4394]
[1754042477379,17.48706368,3619.1,3618.8,0.9899]
[1754042477674,17.48706368,3619.1,3618.7,0.4495]
[1754042477675,0.1384,3618.8,3618.7,3.21292332]
[1754042477976,4.4524,3618.8,3618.7,3.75332332]
[1754042478198,4.4524,3618.8,3618.7,2.76342332]
[1754042478499,4.4524,3618.8,3618.6,2.76347515]
[1754042478701,4.314,3618.8,3618.7,2.76342332]
[1754042478837,4.4524,3618.8,3618.7,2.76342332]
[1754042479243,4.4524,3618.8,3618.7,4.20282332]
[1754042481747,3.3795964,3619.6,3618.7,1.4394]
[1754042481748,0.61685636,3619.6,3618.7,1.4394]
[1754042481966,0.1384,3619.0,3618.9,2.7632706]
[1754042482269,4.4474,3619.0,3618.9,4.2026706]
[1754042483425,4.4474,3619.0,3618.9,2.7632706]
[1754042483583,4.4474,3619.0,3618.9,3.7531706]
[1754042483903,6.639,3619.6,3619.5,2.76281254]
[1754042484122,12.93388288,3619.6,3619.5,4.20221254]
[1754042484485,12.93388288,3619.6,3619.5,3.75271254]
[1754042484682,6.7774,3619.6,3619.5,3.75271254]
[1754042484886,11.0834,3619.6,3619.5,4.20221254]
[1754042485634,6.7774,3619.6,3619.5,4.20221254]
[1754042485812,11.0834,3619.6,3619.5,4.20221254]
[1754042486012,11.0824,3619.6,3619.5,4.20221254]
[1754042486209,11.0814,3619.6,3619.5,4.20221254]
[1754042487081,10.943,3619.6,3619.5,4.20221254]
[1754042487289,6.639,3619.6,3619.5,4.91256354]
[1754042487469,10.943,3619.6,3619.5,4.91256354]
[1754042487873,10.943,3619.6,3619.5,5.46256354]
[1754042489614,10.94,3619.6,3619.5,5.46256354]
[1754042490006,5.24191852,3619.6,3619.5,8.60096354]
[1754042490211,0.1384,3620.1,3620.0,2.76243093]
[1754042490411,0.1384,3620.1,3620.0,3.31243093]
[1754042490593,6.639,3620.6,3620.5,2.76204944]
[1754042490594,6.7774,3620.6,3620.5,2.76204944]
[1754042490916,10.94,3620.6,3620.5,4.20144944]
[1754042491118,6.639,3620.6,3620.5,4.75144944]
[1754042491286,10.94,3620.6,3620.5,4.75144944]
[1754042491484,10.94,3620.6,3620.5,5.641208]
[1754042491707,0.1384,3621.1,3621.0,2.76166804]
[1754042492023,0.1384,3621.1,3620.3,2.76213614]
[1754042492024,0.1384,3620.6,3619.9,0.4495]
[1754042492204,4.3,3620.5,3620.4,2.76212573]
[1754042492382,4.303,3620.5,3620.4,2.76212573]
[1754042492795,4.7333,3620.5,3619.6,2.76269651]
[1754042493017,0.1384,3620.1,3620.0,2.76243093]
[1754042493215,4.4414,3620.1,3620.0,2.76243093]
[1754042493990,4.4414,3620.1,3619.8,2.76257603]
[1754042493991,5.351,3620.1,3619.3,2.76289555]
[1754042494195,5.351,3620.1,3618.8,0.4495]
[1754042494196,0.1384,3619.9,3619.0,0.9899]
[1754042494380,4.306,3619.8,3619.3,2.76294232]
[1754042494583,18.18171063,3620.5,3619.7,2.76265988]
[1754042494584,3.4303,3620.5,3619.7,2.76265988]
[1754042494816,3.4303,3620.5,3619.8,4.20198356]
[1754042494817,0.1384,3619.9,3619.8,4.20198356]
[1754042494990,6.638,3620.6,3620.1,2.76230001]
[1754042495194,4.311,3620.5,3620.3,2.7621875]
[1754042495426,4.311,3620.5,3620.4,2.76212573]
[1754042495584,6.638,3620.6,3620.5,2.76204944]
[1754042495780,10.948,3620.6,3620.5,3.75194944]
[1754042495995,11.0864,3620.6,3620.4,2.76211035]
[1754042496208,12.19504,3620.6,3620.1,2.7622858]
[1754042496397,12.19504,3620.6,3619.9,2.76243758]
[1754042496398,0.1384,3620.0,3619.9,2.76243758]
[1754042496605,4.4474,3620.0,3619.9,2.76243758]
[1754042497118,4.4474,3620.0,3619.9,3.75233758]
[1754042499510,0.1384,3620.1,3620.0,2.76243093]
[1754042499684,6.638,3620.6,3620.5,2.76204944]
[1754042499888,11.0834,3620.6,3620.5,4.20144944]
[1754042500481,6.7764,3620.6,3620.5,4.20144944]
[1754042500682,6.7764,3620.6,3620.5,4.89780818]
[1754042500887,11.0834,3620.6,3620.5,4.89780818]
[1754042501287,6.7764,3620.6,3620.5,4.89780818]
[1754042501487,10.945,3620.6,3620.5,4.89780818]
[1754042503627,10.942,3620.6,3620.5,4.89780818]
[1754042504829,0.1384,3620.8,3620.7,3.31189687]
[1754042505027,4.302,3620.8,3620.7,3.31189687]
[1754042505333,0.1384,3621.5,3621.1,3.31159178]
[1754042505494,0.1384,3621.5,3621.4,3.311363]
[1754042505697,6.637,3621.9,3621.8,2.76105803]
[1754042505897,11.0784,3621.9,3621.8,2.76105803]
[1754042506626,10.94,3621.9,3621.8,4.19785803]
[1754042506826,6.637,3621.9,3621.8,2.76105803]
[1754042506997,10.939,3621.9,3621.8,2.76105803]
[1754042508163,10.939,3621.9,3621.5,2.76128675]
[1754042508429,10.939,3621.9,3621.4,0.1384]
[1754042508430,0.1384,3621.7,3621.4,2.76134826]
[1754042508638,0.1384,3621.7,3621.3,2.76143211]
[1754042508639,0.1384,3621.5,3621.3,2.76143211]
[1754042508933,4.301,3621.4,3621.3,2.76143211]
[1754042509242,0.1384,3621.5,3620.6,0.9825]
[1754042509544,4.304,3621.4,3621.2,2.76145514]
[1754042509727,4.79864,3621.3,3620.6,0.9825]
[1754042509911,4.79864,3621.3,3620.9,2.76171564]
[1754042510115,0.1384,3620.8,3620.7,2.76183259]
[1754042510343,4.4424,3620.8,3620.7,4.19863259]
[1754042511058,7.80898,3621.9,3620.8,0.55]
[1754042511330,5.110618,3621.8,3621.7,2.76113427]
[1754042511511,4.303,3621.8,3621.7,2.76113427]
[1754042511706,4.4414,3621.8,3621.7,2.76113427]
[1754042511951,0.1384,3621.8,3621.7,2.76113427]
[1754042512101,4.4424,3621.8,3621.4,2.76134987]
[1754042512301,0.1384,3621.6,3621.5,2.76128675]
[1754042513639,1.31058,3621.6,3621.5,2.76128675]
[1754042513836,2.22018,3621.6,3621.2,2.76146149]
[1754042514140,0.1384,3621.1,3621.0,2.76166804]
[1754042514313,4.4454,3621.1,3621.0,2.76166804]
[1754042514519,4.4454,3621.1,3621.0,4.19846804]
[1754042515254,4.4454,3621.1,3621.0,3.74416804]
[1754042515741,4.4454,3621.1,3621.0,2.76166804]
[1754042517039,4.4454,3621.1,3620.8,0.9825]
[1754042517252,4.4454,3621.1,3620.5,0.20882011]
[1754042517424,0.1384,3620.8,3620.2,0.1384]
[1754042517624,0.1384,3620.8,3619.5,1.4368]
[1754042517625,0.1384,3620.4,3620.1,2.7623088]
[1754042517975,2.7617246,3621.0,3620.1,2.7623088]
[1754042517976,0.1384,3620.2,3620.1,2.76235463]
[1754042518111,0.1384,3620.2,3620.1,4.19915463]
[1754042518306,0.7085,3621.3,3620.1,2.13296537]
[1754042518510,4.305,3621.2,3620.5,2.76197736]
[1754042518739,0.1384,3620.6,3620.5,2.76204944]
[1754042518941,0.1384,3620.6,3620.5,3.74454944]
[1754042518942,4.4434,3620.6,3620.5,3.74454944]
[1754042519138,4.4434,3620.6,3620.5,4.19884944]
[1754042520046,4.4434,3620.6,3620.5,2.76204944]
[1754042520217,4.88774,3620.6,3620.2,2.76225176]
[1754042520419,4.88774,3620.6,3619.6,3.0]
[1754042520420,0.1384,3620.4,3619.7,0.9825]
[1754042520618,0.7085,3620.5,3619.9,2.76245292]
[1754042520619,0.1384,3620.1,3619.9,2.76245292]
[1754042520838,4.306,3620.0,3619.9,2.76245292]
[1754042521440,4.306,3620.0,3619.8,2.97322424]
[1754042521745,4.306,3620.0,3619.8,2.76255837]
[1754042522061,4.306,3620.0,3619.2,0.9825]
[1754042522266,4.306,3620.0,3619.6,2.76270301]
[1754042522267,0.1384,3619.7,3619.6,2.76270301]
[1754042522427,4.306,3620.0,3619.9,2.76250725]
[1754042523219,4.4444,3620.0,3619.9,2.76250725]
[1754042523419,4.4444,3620.0,3619.9,3.74500725]
[1754042524054,4.4444,3620.0,3619.9,2.76250725]
[1754042525357,4.4444,3620.0,3619.9,3.74500725]
[1754042525521,4.4444,3620.0,3619.9,2.76250725]
[1754042526050,4.4444,3620.0,3619.4,0.20444605]
[1754042526249,0.1384,3619.8,3619.1,3.31307766]
[1754042526451,0.1384,3619.5,3619.4,2.76288887]
[1754042526630,4.4424,3619.5,3619.4,2.76288887]
[1754042526959,4.4424,3619.5,3619.4,4.19968887]
[1754042527158,0.1384,3619.5,3619.4,4.19968887]
[1754042527358,27.57280654,3621.4,3619.4,4.19968887]
[1754042527359,0.1384,3619.8,3619.7,2.76265988]
[1754042527559,0.7085,3621.3,3620.7,2.76187168]
[1754042527761,4.304,3621.2,3620.7,2.76187168]
[1754042527964,0.1384,3620.8,3620.7,2.76187168]
[1754042528140,4.4434,3620.8,3620.7,2.76187168]
[1754042528345,5.59624,3620.8,3620.3,2.76215649]
[1754042528565,0.9757,3620.7,3619.7,0.1384]
[1754042528761,3.47048116,3620.6,3620.0,2.76242618]
[1754042529076,0.9757,3620.5,3620.1,2.76234192]
[1754042529232,0.1384,3620.2,3620.1,2.76234192]
[1754042529760,0.1384,3620.2,3619.5,3.74527917]
[1754042529933,0.1384,3620.0,3619.9,2.76250725]
[1754042530134,4.305,3620.0,3619.9,2.76250725]
[1754042530364,4.4434,3620.0,3619.9,2.76250725]
[1754042531038,4.4434,3620.0,3619.9,4.19930725]
[1754042531039,0.1384,3620.0,3619.9,4.19930725]
[1754042531360,4.4424,3620.0,3619.9,4.89549726]
[1754042531562,4.4424,3620.0,3619.9,4.19930725]
[1754042531778,4.4424,3620.0,3619.9,2.76250725]
[1754042532265,4.4424,3620.0,3619.9,4.19930725]
[1754042534251,0.1384,3620.0,3619.9,4.19930725]
[1754042534573,0.1384,3620.8,3620.7,2.76189687]
[1754042534873,4.4434,3620.8,3620.7,2.76189687]
[1754042535055,4.4434,3620.8,3620.7,4.19869687]
[1754042535255,4.305,3620.8,3620.7,3.74439687]
[1754042535455,4.305,3620.8,3620.7,2.76189687]
[1754042535671,4.305,3620.8,3620.7,3.74439687]
[1754042535871,0.7085,3621.8,3620.9,2.76174431]
[1754042536048,0.7085,3622.2,3621.0,0.9825]
[1754042536246,0.1384,3621.5,3621.4,2.761363]
[1754042536446,4.4474,3621.5,3621.4,4.198163]
[1754042537175,6.637,3622.3,3622.2,2.76075313]
[1754042537336,10.946,3622.3,3622.2,2.76075313]
[1754042537537,11.0844,3622.3,3622.2,2.76075313]
[1754042537733,12.19284,3622.3,3621.4,0.1384]
[1754042537970,0.1384,3622.1,3621.9,2.76094564]
[1754042538231,0.1384,3621.4,3621.3,2.76143926]
[1754042538459,6.637,3622.3,3621.2,3.0]
[1754042538665,4.31,3622.2,3622.1,2.76082935]
[1754042538871,4.4484,3622.2,3622.1,3.23492935]
[1754042539174,4.4484,3622.2,3622.1,2.76082935]
[1754042539874,4.4484,3622.2,3621.7,2.76108217]
[1754042539875,5.88894,3622.2,3621.7,2.76108217]
[1754042540040,0.1384,3621.8,3621.7,2.76108217]
[1754042540538,4.4684,3621.8,3621.7,4.29838217]
[1754042540738,4.4684,3621.8,3621.2,1.0632]
[1754042541279,4.33,3621.8,3621.5,2.76127449]
[1754042541437,4.77684,3621.8,3621.6,2.76120715]
[1754042541638,4.77684,3621.8,3621.3,2.76136704]
[1754042541639,0.1384,3621.5,3621.3,2.76136704]
[1754042541938,0.1384,3621.5,3621.4,2.761363]
[1754042542260,4.331,3621.5,3621.3,2.76143926]
[1754042542458,4.4694,3621.5,3621.4,2.761363]
[1754042542659,4.4694,3621.5,3621.4,3.824563]
[1754042543961,4.77794,3621.5,3621.3,2.76142464]
[1754042544160,0.1384,3621.4,3621.3,2.76142464]
[1754042544580,0.1384,3621.4,3620.8,3.82500635]
[1754042544789,4.77794,3621.5,3621.1,2.76157496]
[1754042544949,4.77794,3621.5,3620.5,3.6125]
[1754042544950,0.7085,3621.4,3620.5,0.6125]
[1754042545137,0.1384,3620.9,3620.5,0.4741]
[1754042545335,4.332,3620.8,3620.7,2.76189687]
[1754042545539,4.332,3620.8,3620.7,3.82509687]
[1754042545774,4.332,3620.8,3620.7,4.29919687]
[1754042545976,0.1384,3621.3,3621.2,2.76151551]
[1754042546176,4.4694,3621.3,3621.2,2.76151551]
[1754042546887,4.4694,3621.3,3621.0,2.76160209]
[1754042547184,3.70051551,3621.2,3620.6,2.76193657]
[1754042547342,3.70051551,3621.2,3620.2,2.76227832]
[1754042547343,0.1384,3620.9,3620.2,2.76227832]
[1754042547543,2.76138842,3621.4,3620.2,2.76227832]
[1754042547544,4.4734,3620.8,3620.3,1.6757]
[1754042547879,0.1384,3621.1,3621.0,2.76166804]
[1754042548079,4.4754,3621.1,3621.0,2.76166804]
[1754042549669,0.1384,3621.1,3621.0,4.29896804]
[1754042549873,4.4754,3621.1,3621.0,2.76166804]
[1754042550692,4.4734,3621.1,3621.0,4.29896804]
[1754042551344,4.4734,3621.1,3621.0,2.76166804]
[1754042551587,4.92074,3621.1,3620.6,1.0632]
[1754042551744,5.45414,3621.1,3620.8,2.7617468]
[1754042551949,0.1384,3620.9,3620.8,2.7617468]
[1754042552490,0.1384,3620.9,3620.8,3.8249468]
[1754042552782,4.4734,3620.9,3620.8,5.28133288]
[1754042553084,4.4734,3620.9,3620.8,3.8249468]
[1754042553284,4.335,3620.9,3620.8,3.8249468]
[1754042553484,4.335,3620.9,3620.8,4.2990468]
[1754042554759,0.1384,3621.1,3621.0,2.76166804]
[1754042554952,6.636,3621.9,3620.9,1.5373]
[1754042555171,0.1384,3621.2,3621.0,1.5373]
[1754042555370,4.333,3621.1,3621.0,3.23576804]
[1754042555567,4.333,3621.1,3621.0,3.78576804]
[1754042555962,4.333,3621.1,3621.0,4.84896804]
[1754042556818,0.1384,3621.6,3621.5,2.76128675]
[1754042556956,4.4704,3621.6,3621.5,2.76128675]
[1754042557152,4.332,3621.6,3621.5,4.29858675]
[1754042557465,4.332,3621.6,3621.5,5.5545827]
[1754042557866,4.332,3621.6,3621.5,2.76128675]
[1754042558278,4.4704,3621.6,3621.5,2.76128675]
[1754042558890,4.4704,3621.6,3621.1,3.37403352]
[1754042558891,4.4704,3621.6,3621.4,2.76130981]
[1754042559268,4.4704,3621.6,3621.1,0.1384]
[1754042559466,0.1384,3621.3,3621.2,2.76151551]
[1754042562205,0.1384,3621.3,3621.2,4.29881551]
[1754042562502,4.332,3621.6,3621.5,2.76128675]
[1754042562713,6.636,3621.9,3621.8,2.76105803]
[1754042562907,11.1014,3621.9,3621.8,4.29835803]
[1754042563478,10.963,3621.9,3621.8,4.84835803]
[1754042563722,10.963,3621.9,3621.8,5.88543689]
[1754042564023,6.635,3623.2,3623.1,2.76006734]
[1754042564223,10.964,3623.2,3623.1,4.29736734]
[1754042564393,11.1016,3623.2,3623.1,4.29736734]
[1754042564593,11.1016,3623.2,3623.1,1.5373]
[1754042564780,12.21176,3623.2,3622.7,0.1384]
[1754042564981,0.9433,3623.1,3622.7,0.1384]
[1754042565193,12.21176,3623.2,3622.7,0.1384]
[1754042565392,12.07416,3623.2,3622.9,2.76021971]
[1754042565598,12.07416,3623.2,3622.4,2.76054792]
[1754042565599,12.75026,3623.2,3622.5,2.76052449]
[1754042565813,1.207416,3623.1,3622.5,2.76052449]
[1754042566018,0.6761,3623.0,3622.5,2.76045598]
[1754042566511,0.2672,3622.9,3622.3,2.76062591]
[1754042566684,4.332,3622.8,3622.1,2.76082025]
[1754042566880,0.6761,3622.7,3622.2,2.76069336]
[1754042567107,4.8470716,3622.8,3622.3,2.76067465]
[1754042567310,4.8470716,3622.8,3622.4,2.76058455]
[1754042567483,0.6761,3623.0,3622.4,2.76058455]
[1754042567686,4.331,3622.9,3622.3,2.76064875]
[1754042567882,5.0071,3622.9,3622.2,2.76072676]
[1754042568084,4.331,3622.9,3621.9,0.55]
[1754042568308,4.207416,3623.1,3622.8,2.76029042]
[1754042568514,1.1952576,3623.0,3622.9,2.76021971]
[1754042568715,4.331,3623.0,3622.9,2.76021971]
[1754042569023,4.331,3623.0,3622.9,3.18821971]
[1754042569231,4.331,3623.0,3622.9,4.21551971]
[1754042569613,4.331,3623.0,3622.9,3.78751971]
[1754042569910,4.331,3623.0,3622.9,2.76021971]
[1754042570533,4.331,3623.0,3622.8,2.7602844]
[1754042570733,4.331,3623.0,3622.9,2.76021971]
[1754042572058,4.331,3623.0,3622.8,2.7602327]
[1754042572244,4.331,3623.0,3622.9,2.76021971]
[1754042573009,4.331,3623.0,3622.9,4.21551971]
[1754042573852,4.331,3623.0,3622.9,3.18821971]
[1754042574057,4.331,3623.0,3622.9,2.76021971]
[1754042575417,4.4694,3623.0,3622.9,3.78751971]
[1754042575876,0.1384,3623.0,3622.9,4.21551971]
[1754042576091,4.4614,3623.0,3622.9,4.21551971]
[1754042579593,4.323,3623.0,3622.9,4.21551971]
[1754042580262,4.323,3623.0,3622.9,3.78751971]
[1754042580595,4.4614,3623.0,3622.9,2.76021971]
[1754042580743,4.4614,3623.0,3622.9,3.78751971]
[1754042580942,4.323,3623.0,3622.9,5.37030232]
[1754042581176,4.323,3623.0,3622.9,5.50870232]
[1754042581383,1e-08,3624.3,3623.2,2.75992365]
[1754042581594,1e-08,3624.3,3624.2,2.75922962]
[1754042581744,4.45460001,3624.3,3624.2,2.75922962]
[1754042583178,4.45460001,3624.3,3624.2,3.78652962]
[1754042583409,4.45460001,3624.3,3624.2,4.21452962]
[1754042584133,4.31700001,3624.3,3624.2,4.21452962]
[1754042584278,1e-08,3624.3,3624.2,8.51032706]
[1754042584474,6.633,3624.6,3624.5,2.75900124]
[1754042584678,10.948,3624.6,3624.5,2.75900124]
[1754042585183,10.948,3624.6,3624.5,3.78630124]
[1754042585417,10.948,3624.6,3624.5,2.75900124]
[1754042585574,10.948,3624.6,3624.1,0.2082072]
[1754042585575,12.05656,3624.6,3624.1,0.2082072]
[1754042585779,12.05656,3624.6,3624.5,2.75900124]
[1754042585979,0.1376,3624.3,3623.7,0.20302431]
[1754042586212,12.05656,3624.6,3623.7,0.20302431]
[1754042586213,4.323,3624.2,3623.7,0.20302431]
[1754042586383,4.324,3624.1,3624.0,2.7593746]
[1754042586583,4.324,3624.1,3623.7,0.20302431]
[1754042586584,4.894,3624.1,3623.9,2.75943946]
[1754042586780,0.1376,3623.9,3623.7,2.75954614]
[1754042587013,0.1376,3623.9,3623.1,0.1384]
[1754042587014,4.324,3623.8,3623.1,0.1384]
[1754042587218,4.324,3623.8,3622.8,1.0273]
[1754042587421,4.324,3623.8,3623.2,2.75994065]
[1754042587581,0.80082414,3623.7,3623.2,2.75992677]
[1754042587915,4.324,3623.6,3623.3,2.75984437]
[1754042588093,0.1376,3623.4,3622.9,2.76021971]
[1754042588290,4.323,3623.3,3623.2,2.75998889]
[1754042588693,4.4606,3623.3,3623.2,2.75998889]
[1754042589142,4.4606,3623.3,3622.7,0.5664]
[1754042589343,4.4606,3623.3,3623.0,2.76008357]
[1754042589509,4.323,3623.3,3623.1,2.76006341]
[1754042589833,0.1376,3623.2,3623.1,2.76006341]
[1754042590005,0.1376,3623.2,3623.1,3.78736341]
[1754042591237,0.1376,3623.2,3623.1,4.21536341]
[1754042591624,0.6576,3624.4,3623.9,2.75942136]
[1754042591947,4.319,3624.3,3623.1,2.76003293]
[1754042592233,3.68405128,3624.2,3623.2,2.75998061]
[1754042592432,3.55962726,3624.1,3623.3,2.75986393]
[1754042592643,0.1376,3623.2,3623.1,2.76006734]
[1754042592804,4.4576,3623.2,3623.1,2.76006734]
[1754042593307,4.4576,3623.2,3622.7,3.78766729]
[1754042593614,0.1384,3623.0,3622.9,2.76021971]
[1754042594229,0.1384,3623.0,3622.9,3.78751971]
[1754042594646,0.1384,3623.0,3622.9,4.21551971]
[1754042596000,4.32,3623.2,3623.1,2.76006734]
[1754042596199,4.32,3623.2,3623.1,4.21536734]
[1754042598124,4.32,3623.2,3623.1,2.76006734]
[1754042598306,4.4576,3623.2,3623.1,2.76006734]
[1754042599736,4.32,3623.2,3623.1,4.18606734]
[1754042599939,4.32,3623.2,3623.1,3.74306734]
[1754042601153,4.32,3623.2,3623.1,2.76006734]
[1754042601335,4.32,3623.2,3623.1,3.74306734]
[1754042601732,4.32,3623.2,3623.1,4.89453605]
[1754042601931,4.32,3623.2,3623.1,5.44453605]
[1754042602151,0.9248,3624.8,3623.7,5.51922068]
[1754042602152,0.2672,3624.8,3623.7,5.51922068]
[1754042602337,0.2672,3624.8,3624.1,2.75927115]
[1754042602655,0.1376,3624.6,3624.5,2.75893605]
[1754042602842,4.5822,3624.8,3624.7,2.758849]
[1754042603025,4.5822,3624.8,3624.7,3.741849]
[1754042604657,4.5822,3624.8,3624.7,2.758849]
[1754042604860,4.5822,3624.8,3624.7,3.94672137]
[1754042605363,4.315,3624.8,3624.7,4.38972137]
[1754042606678,4.314,3624.8,3624.7,4.38972137]
[1754042607990,4.314,3624.8,3624.7,5.07732137]
[1754042608281,4.314,3624.8,3624.7,6.13685485]
[1754042609041,4.314,3624.8,3624.7,2.96372137]
[1754042609456,4.314,3624.8,3624.7,4.38972137]
[1754042610553,4.314,3624.8,3624.7,4.93972137]
[1754042610745,0.1376,3625.2,3625.1,2.75854459]
[1754042610944,4.307,3625.2,3625.1,2.75854459]
[1754042611446,4.4446,3625.2,3625.1,2.75854459]
[1754042613942,0.1376,3625.2,3625.1,3.74154459]
[1754042614124,4.4456,3625.2,3625.1,3.74154459]
[1754042614495,4.308,3625.2,3625.1,4.18454459]
[1754042615537,4.308,3625.2,3625.1,5.44262201]
[1754042615697,6.632,3625.7,3625.6,2.75816416]
[1754042615900,10.937,3625.7,3625.6,3.74116416]
[1754042617457,10.937,3625.7,3625.6,4.18416416]
[1754042618214,10.937,3625.7,3625.6,3.74116416]
[1754042618726,10.937,3625.7,3625.6,4.18416416]
[1754042619309,0.1376,3626.0,3625.9,2.75793596]
[1754042619510,4.4406,3626.0,3625.9,2.75793596]
[1754042619947,0.1376,3626.6,3626.5,2.75747966]
[1754042620245,4.4376,3626.6,3626.5,3.74047966]
[1754042620451,4.4376,3626.6,3626.5,4.18347966]
[1754042621050,6.628,3627.1,3627.0,2.75709953]
[1754042621250,10.928,3627.1,3627.0,2.75709953]
[1754042622430,10.928,3627.1,3627.0,4.18309953]
[1754042622627,0.1376,3627.4,3627.1,3.30702351]
[1754042622827,6.628,3628.4,3627.4,2.7567955]
[1754042623014,0.1376,3628.0,3627.5,1.6706]
[1754042623222,4.305,3627.9,3627.8,2.75649153]
[1754042623526,0.1376,3628.3,3628.2,2.75618764]
[1754042623770,6.628,3628.4,3628.3,2.75611167]
[1754042623914,4.306,3628.4,3628.3,4.18211167]
[1754042624229,0.1376,3628.7,3628.6,2.75588381]
[1754042624430,4.4426,3628.7,3628.6,2.75588381]
[1754042624653,5.86116,3628.7,3627.8,1.19144956]
[1754042624855,5.72356,3628.7,3627.8,1.32904956]
[1754042625020,0.1376,3628.3,3628.0,2.75632056]
[1754042625223,5.2793,3628.2,3627.9,2.75641281]
[1754042625422,1.24879,3628.1,3627.8,2.89408664]
[1754042625844,1.24879,3628.1,3627.8,2.75648664]
[1754042626170,0.1376,3627.9,3627.8,2.75648664]
[1754042626522,0.1376,3627.9,3627.2,1.1206]
[1754042626724,0.1376,3627.7,3627.6,2.75664351]
[1754042627324,4.303,3627.9,3627.6,2.25981403]
[1754042627518,16.626,3629.7,3628.7,2.75577767]
[1754042627519,0.7071,3629.2,3628.7,2.75577767]
[1754042627822,4.303,3629.1,3628.8,2.75572039]
[1754042628144,4.303,3629.1,3628.9,2.75564055]
[1754042628319,4.303,3629.1,3628.5,2.75589089]
[1754042628634,4.80401,3629.1,3628.7,2.75575528]
[1754042629142,0.1376,3628.8,3628.7,2.75575528]
[1754042629347,0.1376,3628.8,3628.6,2.75586582]
[1754042629655,4.302,3628.7,3628.5,2.75594565]
[1754042629968,4.4396,3628.6,3628.5,2.75594565]
[1754042630139,4.4396,3628.6,3628.4,2.75601161]
[1754042630459,4.302,3628.6,3628.5,2.75595976]
[1754042630672,4.302,3628.6,3627.9,1.0714]
[1754042630673,4.302,3628.6,3628.4,2.75601085]
[1754042630868,4.302,3628.6,3628.5,2.75595976]
[1754042631347,4.302,3628.6,3627.9,1.5017]
[1754042631557,4.302,3628.6,3627.9,1.0714]
[1754042631743,4.302,3628.6,3628.4,2.7559839]
[1754042631937,4.302,3628.6,3627.9,1.5017]
[1754042631938,4.302,3628.6,3628.3,2.75609072]
[1754042632137,4.302,3628.6,3628.4,2.75603556]
[1754042632660,0.1376,3628.5,3628.4,2.75603556]
[1754042632955,0.1376,3628.5,3627.9,1.5017]